[Event "Early Titled Tuesday Blitz | February 8 2022"]
[White "Jakubowski, Krzysztof"]
[Black "Bugayev, Vladimir"]
[WhiteFideId "1112848"]
[BlackFideId "30901480"]
[WhiteElo "2365"]
[BlackElo "2376"]
[Result "1-0"]
[Round "07"]
[TimeControl "180+1"]
[Date "2022.02.08"]
[WhiteClock "0:00:33"]
[BlackClock "0:00:11"]

1. e4 {[%clk 0:03:00]}  c6 {[%clk 0:02:59]} 2. d4 {[%clk 0:02:59]}  d5 {[%clk 0:03:00]} 3. e5 {[%clk 0:02:59]}  Bf5 {[%clk 0:03:00]} 4. Nf3 {[%clk 0:02:58]}  e6 {[%clk 0:02:59]} 5. Be2 {[%clk 0:02:57]}  Ne7 {[%clk 0:02:59]} 6. O-O {[%clk 0:02:56]}  Nd7 {[%clk 0:02:59]} 7. Nbd2 {[%clk 0:02:54]}  a6 {[%clk 0:02:59]} 8. a4 {[%clk 0:02:48]}  Nc8 {[%clk 0:02:57]} 9. a5 {[%clk 0:02:45]}  Be7 {[%clk 0:02:55]} 10. Nb3 {[%clk 0:02:44]}  Na7 {[%clk 0:02:55]} 11. Be3 {[%clk 0:02:39]}  O-O {[%clk 0:02:51]} 12. c4 {[%clk 0:02:39]}  dxc4 {[%clk 0:02:48]} 13. Bxc4 {[%clk 0:02:40]}  Nb5 {[%clk 0:02:48]} 14. h3 {[%clk 0:02:33]}  Be4 {[%clk 0:02:44]} 15. Nfd2 {[%clk 0:02:25]}  Bd5 {[%clk 0:02:44]} 16. Qe2 {[%clk 0:02:23]}  Nc7 {[%clk 0:02:41]} 17. f4 {[%clk 0:02:19]}  g6 {[%clk 0:02:36]} 18. Rad1 {[%clk 0:01:58]}  f5 {[%clk 0:02:19]} 19. exf6 {[%clk 0:01:52]}  Nxf6 {[%clk 0:02:10]} 20. Bf2 {[%clk 0:01:41]}  Bb4 {[%clk 0:02:00]} 21. Nc5 {[%clk 0:01:38]}  Rb8 {[%clk 0:01:53]} 22. Ndb3 {[%clk 0:01:35]}  Qd6 {[%clk 0:01:25]} 23. g3 {[%clk 0:01:08]}  Bxc4 {[%clk 0:01:09]} 24. Qxc4 {[%clk 0:01:07]}  Nfd5 {[%clk 0:01:09]} 25. Qe2 {[%clk 0:01:02]}  h5 {[%clk 0:00:55]} 26. h4 {[%clk 0:00:59]}  b6 {[%clk 0:00:33]} 27. axb6 {[%clk 0:00:52]}  Rxb6 {[%clk 0:00:33]} 28. Ne4 {[%clk 0:00:52]}  Qe7 {[%clk 0:00:30]} 29. Ng5 {[%clk 0:00:50]}  Qf6 {[%clk 0:00:30]} 30. Rd3 {[%clk 0:00:45]}  Nb5 {[%clk 0:00:27]} 31. Rc1 {[%clk 0:00:42]}  a5 {[%clk 0:00:23]} 32. Nc5 {[%clk 0:00:39]}  Nd6 {[%clk 0:00:18]} 33. Nd7 {[%clk 0:00:38]}  Qd8 {[%clk 0:00:17]} 34. Qxe6+ {[%clk 0:00:37]}  Nf7 {[%clk 0:00:14]} 35. Qxg6+ {[%clk 0:00:33]}  Kh8 {[%clk 0:00:11]} 36. Qh7# {[%clk 0:00:33]} 1-0


[Site "https://www.chess.com"]

[Event "Early Titled Tuesday Blitz | February 8 2022"]
[White "Jaracz, Pawel"]
[Black "Grandelius, Nils"]
[WhiteFideId "1102222"]
[BlackFideId "1710400"]
[WhiteElo "2429"]
[BlackElo "2617"]
[Result "0-1"]
[Round "07"]
[TimeControl "180+1"]
[Date "2022.02.08"]
[WhiteClock "0:00:07"]
[BlackClock "0:00:15"]

1. e4 {[%clk 0:03:00]}  c5 {[%clk 0:03:00]} 2. Nf3 {[%clk 0:03:01]}  e6 {[%clk 0:03:00]} 3. d4 {[%clk 0:02:59]}  cxd4 {[%clk 0:03:01]} 4. Nxd4 {[%clk 0:03:00]}  a6 {[%clk 0:03:02]} 5. Bd3 {[%clk 0:03:00]}  Nf6 {[%clk 0:02:57]} 6. O-O {[%clk 0:02:59]}  d6 {[%clk 0:02:57]} 7. c4 {[%clk 0:02:58]}  b6 {[%clk 0:02:51]} 8. Nc3 {[%clk 0:02:58]}  Bb7 {[%clk 0:02:52]} 9. f4 {[%clk 0:02:58]}  Nbd7 {[%clk 0:02:48]} 10. f5 {[%clk 0:02:53]}  Nc5 {[%clk 0:02:27]} 11. fxe6 {[%clk 0:02:50]}  fxe6 {[%clk 0:02:20]} 12. b4 {[%clk 0:02:50]}  Nxd3 {[%clk 0:02:18]} 13. Qxd3 {[%clk 0:02:46]}  Qd7 {[%clk 0:02:14]} 14. Bg5 {[%clk 0:02:27]}  Be7 {[%clk 0:02:13]} 15. Qh3 {[%clk 0:02:27]}  Bc8 {[%clk 0:01:26]} 16. Rad1 {[%clk 0:02:10]}  O-O {[%clk 0:01:26]} 17. c5 {[%clk 0:01:35]}  bxc5 {[%clk 0:01:22]} 18. bxc5 {[%clk 0:01:35]}  h6 {[%clk 0:01:05]} 19. cxd6 {[%clk 0:01:31]}  Qxd6 {[%clk 0:00:51]} 20. Be3 {[%clk 0:00:58]}  Qe5 {[%clk 0:00:47]} 21. Nc6 {[%clk 0:00:51]}  Qc7 {[%clk 0:00:43]} 22. Nxe7+ {[%clk 0:00:51]}  Qxe7 {[%clk 0:00:44]} 23. Qg3 {[%clk 0:00:41]}  Kh8 {[%clk 0:00:26]} 24. e5 {[%clk 0:00:31]}  Nh7 {[%clk 0:00:26]} 25. Ne4 {[%clk 0:00:27]}  Bb7 {[%clk 0:00:24]} 26. Nd6 {[%clk 0:00:27]}  Bd5 {[%clk 0:00:24]} 27. Bc5 {[%clk 0:00:23]}  Qc7 {[%clk 0:00:21]} 28. Qe3 {[%clk 0:00:20]}  Kg8 {[%clk 0:00:19]} 29. Rxf8+ {[%clk 0:00:20]}  Rxf8 {[%clk 0:00:20]} 30. a3 {[%clk 0:00:18]}  Ng5 {[%clk 0:00:20]} 31. h3 {[%clk 0:00:18]}  Qc6 {[%clk 0:00:19]} 32. Rd2 {[%clk 0:00:17]}  Rb8 {[%clk 0:00:19]} 33. Kh2 {[%clk 0:00:17]}  Rb1 {[%clk 0:00:19]} 34. Rf2 {[%clk 0:00:17]}  Qa8 {[%clk 0:00:17]} 35. h4 {[%clk 0:00:13]}  Nh7 {[%clk 0:00:17]} 36. Qf4 {[%clk 0:00:12]}  Rb8 {[%clk 0:00:16]} 37. Qg4 {[%clk 0:00:09]}  Rf8 {[%clk 0:00:16]} 38. Rf4 {[%clk 0:00:08]}  Rxf4 {[%clk 0:00:15]} 39. Qxf4 {[%clk 0:00:09]}  Qf8 {[%clk 0:00:15]} 40. Qxf8+ {[%clk 0:00:08]}  Nxf8 {[%clk 0:00:15]} 41. Ne8 {[%clk 0:00:08]}  Ng6 {[%clk 0:00:14]} 42. Bd4 {[%clk 0:00:07]}  Nxh4 {[%clk 0:00:14]} 43. Nc7 {[%clk 0:00:08]}  Bc4 {[%clk 0:00:14]} 44. Kg3 {[%clk 0:00:07]}  Nf5+ {[%clk 0:00:15]} 0-1


[Site "https://www.chess.com"]

[Event "Early Titled Tuesday Blitz | February 8 2022"]
[White "Jones, Gawain C B"]
[Black "Agibileg, Uurtsaikh"]
[WhiteFideId "409561"]
[BlackFideId "4901606"]
[WhiteElo "2657"]
[BlackElo "2205"]
[Result "1-0"]
[Round "07"]
[TimeControl "180+1"]
[Date "2022.02.08"]
[WhiteClock "0:00:20"]
[BlackClock "0:00:02"]

1. Nf3 {[%clk 0:03:00]}  Nf6 {[%clk 0:02:59]} 2. g3 {[%clk 0:03:00]}  g6 {[%clk 0:03:00]} 3. b3 {[%clk 0:03:01]}  Bg7 {[%clk 0:02:59]} 4. Bb2 {[%clk 0:03:01]}  c5 {[%clk 0:03:00]} 5. Bg2 {[%clk 0:03:01]}  d6 {[%clk 0:03:00]} 6. O-O {[%clk 0:03:01]}  e5 {[%clk 0:03:00]} 7. c4 {[%clk 0:02:58]}  O-O {[%clk 0:03:01]} 8. e3 {[%clk 0:02:56]}  Nc6 {[%clk 0:03:01]} 9. h3 {[%clk 0:02:56]}  Be6 {[%clk 0:02:56]} 10. Nc3 {[%clk 0:02:51]}  h6 {[%clk 0:02:54]} 11. d4 {[%clk 0:02:48]}  cxd4 {[%clk 0:02:44]} 12. exd4 {[%clk 0:02:48]}  e4 {[%clk 0:02:41]} 13. Nd2 {[%clk 0:02:48]}  d5 {[%clk 0:02:37]} 14. cxd5 {[%clk 0:02:48]}  Bxd5 {[%clk 0:02:25]} 15. Ndxe4 {[%clk 0:02:43]}  Nxe4 {[%clk 0:02:13]} 16. Nxe4 {[%clk 0:02:43]}  Re8 {[%clk 0:02:10]} 17. Re1 {[%clk 0:02:42]}  Bxe4 {[%clk 0:02:10]} 18. Rxe4 {[%clk 0:02:33]}  Rxe4 {[%clk 0:02:07]} 19. Bxe4 {[%clk 0:02:34]}  Nxd4 {[%clk 0:01:42]} 20. Bxb7 {[%clk 0:02:33]}  Rb8 {[%clk 0:01:42]} 21. Bg2 {[%clk 0:02:21]}  Rb6 {[%clk 0:01:17]} 22. Rb1 {[%clk 0:02:09]}  Rd6 {[%clk 0:01:11]} 23. Qf1 {[%clk 0:02:08]}  Qa5 {[%clk 0:01:05]} 24. a3 {[%clk 0:01:49]}  Qd2 {[%clk 0:00:22]} 25. Kh1 {[%clk 0:01:47]}  Rf6 {[%clk 0:00:20]} 26. Qd1 {[%clk 0:01:37]}  Rxf2 {[%clk 0:00:19]} 27. Qxd2 {[%clk 0:01:34]}  Rxd2 {[%clk 0:00:20]} 28. b4 {[%clk 0:01:28]}  Rd3 {[%clk 0:00:15]} 29. Re1 {[%clk 0:01:16]}  Rxg3 {[%clk 0:00:15]} 30. Re8+ {[%clk 0:01:14]}  Kh7 {[%clk 0:00:15]} 31. Re7 {[%clk 0:01:14]}  Kg8 {[%clk 0:00:06]} 32. a4 {[%clk 0:00:50]}  Rb3 {[%clk 0:00:06]} 33. Bxd4 {[%clk 0:00:46]}  Bxd4 {[%clk 0:00:06]} 34. Bd5 {[%clk 0:00:45]}  Rb1+ {[%clk 0:00:07]} 35. Kg2 {[%clk 0:00:44]}  Rxb4 {[%clk 0:00:08]} 36. Rxf7 {[%clk 0:00:44]}  Kh8 {[%clk 0:00:08]} 37. Rf8+ {[%clk 0:00:37]}  Kh7 {[%clk 0:00:07]} 38. Bc6 {[%clk 0:00:34]}  g5 {[%clk 0:00:07]} 39. Rd8 {[%clk 0:00:28]}  Kg6 {[%clk 0:00:07]} 40. Rd5 {[%clk 0:00:26]}  Kf6 {[%clk 0:00:06]} 41. Rd6+ {[%clk 0:00:26]}  Ke5 {[%clk 0:00:06]} 42. Rxh6 {[%clk 0:00:26]}  Kf4 {[%clk 0:00:06]} 43. Kf1 {[%clk 0:00:25]}  Rb2 {[%clk 0:00:06]} 44. Re6 {[%clk 0:00:21]}  Be3 {[%clk 0:00:06]} 45. Re4+ {[%clk 0:00:21]}  Kf3 {[%clk 0:00:01]} 46. Rb4+ {[%clk 0:00:21]}  Kg3 {[%clk 0:00:02]} 47. Rxb2 {[%clk 0:00:21]}  Bf4 {[%clk 0:00:02]} 48. Rb3+ {[%clk 0:00:20]} 1-0


[Site "https://www.chess.com"]

[Event "Early Titled Tuesday Blitz | February 8 2022"]
[White "Kanyamarala, Tarun"]
[Black "Mosutha, Thuso"]
[WhiteFideId "45004714"]
[BlackFideId "11302550"]
[WhiteElo "2144"]
[BlackElo "2028"]
[Result "1-0"]
[Round "07"]
[TimeControl "180+1"]
[Date "2022.02.08"]
[WhiteClock "0:00:23"]
[BlackClock "0:00:14"]

1. d4 {[%clk 0:03:00]}  d5 {[%clk 0:03:00]} 2. c4 {[%clk 0:03:01]}  e6 {[%clk 0:03:00]} 3. Nc3 {[%clk 0:03:00]}  Nf6 {[%clk 0:03:00]} 4. cxd5 {[%clk 0:03:00]}  exd5 {[%clk 0:03:01]} 5. Bg5 {[%clk 0:03:00]}  Be7 {[%clk 0:03:01]} 6. e3 {[%clk 0:03:00]}  O-O {[%clk 0:03:01]} 7. h3 {[%clk 0:03:00]}  h6 {[%clk 0:03:01]} 8. Bf4 {[%clk 0:02:59]}  a6 {[%clk 0:03:01]} 9. Bd3 {[%clk 0:02:57]}  c5 {[%clk 0:03:01]} 10. dxc5 {[%clk 0:02:56]}  Bxc5 {[%clk 0:03:00]} 11. Nf3 {[%clk 0:02:54]}  Nc6 {[%clk 0:03:00]} 12. O-O {[%clk 0:02:39]}  Kh8 {[%clk 0:03:00]} 13. Rc1 {[%clk 0:02:34]}  Ba7 {[%clk 0:02:57]} 14. Ne2 {[%clk 0:02:33]}  d4 {[%clk 0:02:44]} 15. Nexd4 {[%clk 0:02:30]}  Nxd4 {[%clk 0:02:45]} 16. exd4 {[%clk 0:02:28]}  Bxd4 {[%clk 0:02:46]} 17. Nxd4 {[%clk 0:02:18]}  Qxd4 {[%clk 0:02:47]} 18. Qd2 {[%clk 0:02:16]}  Ne4 {[%clk 0:02:08]} 19. Qe3 {[%clk 0:02:15]}  Qxe3 {[%clk 0:02:05]} 20. Bxe3 {[%clk 0:02:16]}  Nf6 {[%clk 0:01:59]} 21. Bc4 {[%clk 0:01:34]}  b5 {[%clk 0:01:54]} 22. Bb3 {[%clk 0:01:32]}  Bf5 {[%clk 0:01:42]} 23. Bc5 {[%clk 0:01:30]}  Rfc8 {[%clk 0:01:36]} 24. Bxf7 {[%clk 0:01:30]}  Rc7 {[%clk 0:01:28]} 25. Bb3 {[%clk 0:01:25]}  Rac8 {[%clk 0:01:23]} 26. Be3 {[%clk 0:01:25]}  Bd3 {[%clk 0:01:16]} 27. Rxc7 {[%clk 0:01:20]}  Rxc7 {[%clk 0:01:15]} 28. Rd1 {[%clk 0:01:20]}  Bc4 {[%clk 0:01:07]} 29. Rc1 {[%clk 0:01:19]}  Nd5 {[%clk 0:01:03]} 30. Bxc4 {[%clk 0:01:03]}  bxc4 {[%clk 0:00:57]} 31. Bd4 {[%clk 0:01:01]}  Nf4 {[%clk 0:00:46]} 32. Kf1 {[%clk 0:00:52]}  Nd3 {[%clk 0:00:42]} 33. Rc2 {[%clk 0:00:50]}  Nb4 {[%clk 0:00:42]} 34. Rc1 {[%clk 0:00:49]}  Nxa2 {[%clk 0:00:42]} 35. Ra1 {[%clk 0:00:49]}  Nb4 {[%clk 0:00:41]} 36. Bc3 {[%clk 0:00:44]}  Nd3 {[%clk 0:00:37]} 37. Rxa6 {[%clk 0:00:43]}  Rf7 {[%clk 0:00:34]} 38. f3 {[%clk 0:00:36]}  Rb7 {[%clk 0:00:33]} 39. Rxh6+ {[%clk 0:00:33]}  Kg8 {[%clk 0:00:32]} 40. Rc6 {[%clk 0:00:31]}  Nxb2 {[%clk 0:00:21]} 41. Bxb2 {[%clk 0:00:30]}  Rxb2 {[%clk 0:00:22]} 42. Rxc4 {[%clk 0:00:30]}  Kf7 {[%clk 0:00:21]} 43. Kg1 {[%clk 0:00:30]}  Kf6 {[%clk 0:00:20]} 44. Kh2 {[%clk 0:00:31]}  Kg6 {[%clk 0:00:19]} 45. Kg3 {[%clk 0:00:30]}  Kh6 {[%clk 0:00:19]} 46. Rc6+ {[%clk 0:00:30]}  g6 {[%clk 0:00:19]} 47. h4 {[%clk 0:00:28]}  Kh5 {[%clk 0:00:19]} 48. Kh3 {[%clk 0:00:27]}  Kh6 {[%clk 0:00:17]} 49. g4 {[%clk 0:00:25]}  Rb7 {[%clk 0:00:17]} 50. h5 {[%clk 0:00:25]}  Kg5 {[%clk 0:00:15]} 51. Kg3 {[%clk 0:00:23]}  gxh5 {[%clk 0:00:14]} 52. f4# {[%clk 0:00:23]} 1-0


[Site "https://www.chess.com"]

[Event "Early Titled Tuesday Blitz | February 8 2022"]
[White "Kanyamarala, Trisha"]
[Black "Khripachenko, Alexander"]
[WhiteFideId "45004722"]
[BlackFideId "54184975"]
[WhiteElo "2002"]
[BlackElo "2177"]
[Result "0-1"]
[Round "07"]
[TimeControl "180+1"]
[Date "2022.02.08"]
[WhiteClock "0:00:01"]
[BlackClock "0:01:27"]

1. d4 {[%clk 0:03:00]}  Nf6 {[%clk 0:02:58]} 2. c4 {[%clk 0:03:00]}  g6 {[%clk 0:02:58]} 3. Nc3 {[%clk 0:02:59]}  d5 {[%clk 0:02:59]} 4. cxd5 {[%clk 0:02:59]}  Nxd5 {[%clk 0:03:00]} 5. e4 {[%clk 0:02:58]}  Nxc3 {[%clk 0:03:00]} 6. bxc3 {[%clk 0:02:59]}  Bg7 {[%clk 0:03:00]} 7. Nf3 {[%clk 0:03:00]}  c5 {[%clk 0:03:00]} 8. Be3 {[%clk 0:03:00]}  O-O {[%clk 0:03:00]} 9. Be2 {[%clk 0:02:54]}  Qa5 {[%clk 0:03:00]} 10. O-O {[%clk 0:02:53]}  Rd8 {[%clk 0:03:00]} 11. Rc1 {[%clk 0:02:40]}  Bg4 {[%clk 0:02:59]} 12. Qb3 {[%clk 0:02:33]}  b6 {[%clk 0:02:40]} 13. Ng5 {[%clk 0:02:05]}  Bxe2 {[%clk 0:02:14]} 14. Qxf7+ {[%clk 0:01:58]}  Kh8 {[%clk 0:02:14]} 15. Rfe1 {[%clk 0:00:52]}  Bg4 {[%clk 0:02:13]} 16. Qxe7 {[%clk 0:00:47]}  Nc6 {[%clk 0:02:09]} 17. Qc7 {[%clk 0:00:33]}  cxd4 {[%clk 0:02:07]} 18. Nf7+ {[%clk 0:00:12]}  Kg8 {[%clk 0:02:07]} 19. Nxd8 {[%clk 0:00:07]}  Rxd8 {[%clk 0:01:49]} 20. Qxc6 {[%clk 0:00:07]}  dxe3 {[%clk 0:01:47]} 21. Qc4+ {[%clk 0:00:06]}  Kh8 {[%clk 0:01:47]} 22. fxe3 {[%clk 0:00:06]}  Qe5 {[%clk 0:01:46]} 23. h3 {[%clk 0:00:06]}  Be6 {[%clk 0:01:47]} 24. Qc6 {[%clk 0:00:05]}  h5 {[%clk 0:01:45]} 25. Rcd1 {[%clk 0:00:06]}  Rc8 {[%clk 0:01:43]} 26. Qb7 {[%clk 0:00:05]}  Rc7 {[%clk 0:01:40]} 27. Qb8+ {[%clk 0:00:05]}  Kh7 {[%clk 0:01:40]} 28. Qd8 {[%clk 0:00:04]}  Rf7 {[%clk 0:01:35]} 29. Qh4 {[%clk 0:00:04]}  Bf6 {[%clk 0:01:33]} 30. Qf2 {[%clk 0:00:04]}  Bg5 {[%clk 0:01:31]} 31. Qe2 {[%clk 0:00:04]}  Qg3 {[%clk 0:01:31]} 32. Rd4 {[%clk 0:00:02]}  Bxh3 {[%clk 0:01:28]} 33. Red1 {[%clk 0:00:01]}  Bxe3+ {[%clk 0:01:28]} 34. Kh1 {[%clk 0:00:01]}  Rf2 {[%clk 0:01:27]} 35. gxh3 {[%clk 0:00:01]}  Qh2# {[%clk 0:01:27]} 0-1


[Site "https://www.chess.com"]

[Event "Early Titled Tuesday Blitz | February 8 2022"]
[White "Karavaeva, Olga"]
[Black "Iljushina, Olga"]
[WhiteFideId "4124111"]
[BlackFideId "4152280"]
[WhiteElo "2105"]
[BlackElo "1937"]
[Result "1-0"]
[Round "07"]
[TimeControl "180+1"]
[Date "2022.02.08"]
[WhiteClock "0:00:17"]
[BlackClock "0:00:01"]

1. c4 {[%clk 0:02:56]}  c5 {[%clk 0:02:59]} 2. Nc3 {[%clk 0:02:55]}  Nc6 {[%clk 0:02:59]} 3. g3 {[%clk 0:02:55]}  g6 {[%clk 0:02:58]} 4. Bg2 {[%clk 0:02:55]}  Bg7 {[%clk 0:02:58]} 5. Nf3 {[%clk 0:02:56]}  e5 {[%clk 0:02:58]} 6. O-O {[%clk 0:02:57]}  e4 {[%clk 0:02:58]} 7. Nxe4 {[%clk 0:02:56]}  d5 {[%clk 0:02:56]} 8. cxd5 {[%clk 0:02:53]}  Qxd5 {[%clk 0:02:55]} 9. Nc3 {[%clk 0:02:52]}  Qd8 {[%clk 0:02:53]} 10. d3 {[%clk 0:02:51]}  Nge7 {[%clk 0:02:53]} 11. Be3 {[%clk 0:02:50]}  b6 {[%clk 0:02:50]} 12. Qd2 {[%clk 0:02:42]}  O-O {[%clk 0:02:48]} 13. Bh6 {[%clk 0:02:40]}  Bf5 {[%clk 0:02:43]} 14. Bxg7 {[%clk 0:02:40]}  Kxg7 {[%clk 0:02:43]} 15. Rfd1 {[%clk 0:02:36]}  Rc8 {[%clk 0:02:42]} 16. d4 {[%clk 0:02:35]}  cxd4 {[%clk 0:02:34]} 17. Nxd4 {[%clk 0:02:36]}  Nxd4 {[%clk 0:02:33]} 18. Qxd4+ {[%clk 0:02:36]}  Qxd4 {[%clk 0:02:33]} 19. Rxd4 {[%clk 0:02:37]}  Nc6 {[%clk 0:02:24]} 20. Rd6 {[%clk 0:02:36]}  Nb4 {[%clk 0:02:22]} 21. Rad1 {[%clk 0:02:33]}  Rfe8 {[%clk 0:02:17]} 22. e4 {[%clk 0:02:25]}  Be6 {[%clk 0:02:14]} 23. a3 {[%clk 0:02:22]}  Nc6 {[%clk 0:02:03]} 24. f4 {[%clk 0:02:12]}  Na5 {[%clk 0:02:02]} 25. Bf1 {[%clk 0:01:57]}  Bb3 {[%clk 0:01:58]} 26. R1d4 {[%clk 0:01:49]}  Re7 {[%clk 0:01:42]} 27. Rd7 {[%clk 0:01:44]}  Rc7 {[%clk 0:01:41]} 28. Rxc7 {[%clk 0:01:39]}  Rxc7 {[%clk 0:01:40]} 29. e5 {[%clk 0:01:39]}  Bc4 {[%clk 0:01:20]} 30. Bg2 {[%clk 0:01:30]}  Ba6 {[%clk 0:01:09]} 31. Bd5 {[%clk 0:01:20]}  Rd7 {[%clk 0:01:01]} 32. Ra4 {[%clk 0:01:13]}  Bd3 {[%clk 0:00:53]} 33. e6 {[%clk 0:01:04]}  fxe6 {[%clk 0:00:51]} 34. Bxe6 {[%clk 0:01:04]}  Rd6 {[%clk 0:00:50]} 35. Bc8 {[%clk 0:00:57]}  Bc2 {[%clk 0:00:50]} 36. Rb4 {[%clk 0:00:54]}  Rd2 {[%clk 0:00:46]} 37. h4 {[%clk 0:00:47]}  Nc6 {[%clk 0:00:43]} 38. Rc4 {[%clk 0:00:44]}  Nd4 {[%clk 0:00:42]} 39. Bb7 {[%clk 0:00:43]}  Bb3 {[%clk 0:00:38]} 40. Rc7+ {[%clk 0:00:42]}  Kh6 {[%clk 0:00:34]} 41. Ne4 {[%clk 0:00:40]}  Rxb2 {[%clk 0:00:24]} 42. Ng5 {[%clk 0:00:39]}  Bg8 {[%clk 0:00:19]} 43. g4 {[%clk 0:00:35]}  Rb3 {[%clk 0:00:16]} 44. Bd5 {[%clk 0:00:35]}  Rg3+ {[%clk 0:00:14]} 45. Kh2 {[%clk 0:00:32]}  Rxg4 {[%clk 0:00:14]} 46. Bxg8 {[%clk 0:00:32]}  Rxh4+ {[%clk 0:00:10]} 47. Nh3 {[%clk 0:00:30]}  Kh5 {[%clk 0:00:04]} 48. Rxh7+ {[%clk 0:00:29]}  Kg4 {[%clk 0:00:04]} 49. Rxh4+ {[%clk 0:00:29]}  Kxh4 {[%clk 0:00:04]} 50. Kg2 {[%clk 0:00:21]}  Kg4 {[%clk 0:00:04]} 51. Bc4 {[%clk 0:00:21]}  b5 {[%clk 0:00:03]} 52. Bd3 {[%clk 0:00:20]}  Kh4 {[%clk 0:00:03]} 53. Nf2 {[%clk 0:00:19]}  Nf5 {[%clk 0:00:02]} 54. Ne4 {[%clk 0:00:19]}  Ne3+ {[%clk 0:00:01]} 55. Kf3 {[%clk 0:00:18]}  Nd5 {[%clk 0:00:01]} 56. Nd6 {[%clk 0:00:18]}  Nc3 {[%clk 0:00:01]} 57. Bxg6 {[%clk 0:00:17]} 1-0


[Site "https://www.chess.com"]

[Event "Early Titled Tuesday Blitz | February 8 2022"]
[White "Kostina, Nadezhda"]
[Black "Novikova, Galina"]
[WhiteFideId "4195876"]
[BlackFideId "4157095"]
[WhiteElo "2001"]
[BlackElo "1863"]
[Result "1-0"]
[Round "07"]
[TimeControl "180+1"]
[Date "2022.02.08"]
[WhiteClock "0:01:40"]
[BlackClock "0:01:40"]

1. e4 {[%clk 0:03:00]}  e6 {[%clk 0:02:54]} 2. d4 {[%clk 0:02:57]}  d5 {[%clk 0:02:54]} 3. Nc3 {[%clk 0:02:56]}  Bb4 {[%clk 0:02:53]} 4. e5 {[%clk 0:02:52]}  c5 {[%clk 0:02:53]} 5. a3 {[%clk 0:02:51]}  Bxc3+ {[%clk 0:02:52]} 6. bxc3 {[%clk 0:02:51]}  Ne7 {[%clk 0:02:53]} 7. Qg4 {[%clk 0:02:50]}  Qa5 {[%clk 0:02:53]} 8. Bd2 {[%clk 0:02:40]}  Qa4 {[%clk 0:02:52]} 9. Qd1 {[%clk 0:02:39]}  cxd4 {[%clk 0:02:52]} 10. Qb1 {[%clk 0:02:26]}  dxc3 {[%clk 0:02:42]} 11. Bb5+ {[%clk 0:02:20]}  Qxb5 {[%clk 0:02:41]} 12. Qxb5+ {[%clk 0:02:19]}  Bd7 {[%clk 0:02:42]} 13. Qxb7 {[%clk 0:02:17]}  cxd2+ {[%clk 0:02:43]} 14. Kxd2 {[%clk 0:02:17]}  Bc6 {[%clk 0:02:44]} 15. Qc7 {[%clk 0:02:14]}  Nd7 {[%clk 0:02:30]} 16. Nf3 {[%clk 0:02:10]}  Rc8 {[%clk 0:02:29]} 17. Qa5 {[%clk 0:01:59]}  O-O {[%clk 0:02:26]} 18. Rab1 {[%clk 0:01:56]}  Nb6 {[%clk 0:02:16]} 19. Ke2 {[%clk 0:01:51]}  Nf5 {[%clk 0:01:55]} 20. g4 {[%clk 0:01:50]}  Ne7 {[%clk 0:01:47]} 21. Qxa7 {[%clk 0:01:44]}  Nc4 {[%clk 0:01:46]} 22. Qxe7 {[%clk 0:01:43]}  Nxa3 {[%clk 0:01:44]} 23. Qxa3 {[%clk 0:01:42]}  Bb5+ {[%clk 0:01:43]} 24. Kd2 {[%clk 0:01:41]}  Rc4 {[%clk 0:01:40]} 25. Rxb5 {[%clk 0:01:40]} 1-0


[Site "https://www.chess.com"]

[Event "Early Titled Tuesday Blitz | February 8 2022"]
[White "Kiseleva, Arina"]
[Black "Jakubowska, Anna"]
[WhiteFideId "4164989"]
[BlackFideId "1121952"]
[WhiteElo "1866"]
[BlackElo "1924"]
[Result "0-1"]
[Round "07"]
[TimeControl "180+1"]
[Date "2022.02.08"]
[WhiteClock "0:00:01"]
[BlackClock "0:01:24"]

1. d4 {[%clk 0:03:00]}  d5 {[%clk 0:02:58]} 2. Nf3 {[%clk 0:02:59]}  Nf6 {[%clk 0:02:57]} 3. c4 {[%clk 0:02:59]}  c6 {[%clk 0:02:57]} 4. Nbd2 {[%clk 0:02:58]}  a6 {[%clk 0:02:54]} 5. e3 {[%clk 0:02:53]}  Bg4 {[%clk 0:02:52]} 6. Be2 {[%clk 0:02:50]}  e6 {[%clk 0:02:52]} 7. O-O {[%clk 0:02:46]}  Bd6 {[%clk 0:02:50]} 8. h3 {[%clk 0:02:42]}  Bh5 {[%clk 0:02:48]} 9. b3 {[%clk 0:02:39]}  O-O {[%clk 0:02:46]} 10. Bb2 {[%clk 0:02:39]}  Nbd7 {[%clk 0:02:46]} 11. Ne5 {[%clk 0:02:31]}  Bxe2 {[%clk 0:02:45]} 12. Qxe2 {[%clk 0:02:32]}  Qc7 {[%clk 0:02:43]} 13. Nxd7 {[%clk 0:02:21]}  Qxd7 {[%clk 0:02:42]} 14. e4 {[%clk 0:02:17]}  dxe4 {[%clk 0:02:41]} 15. Nxe4 {[%clk 0:02:18]}  Nxe4 {[%clk 0:02:40]} 16. Qxe4 {[%clk 0:02:19]}  f5 {[%clk 0:02:39]} 17. Qe2 {[%clk 0:02:14]}  Rae8 {[%clk 0:02:39]} 18. Rfe1 {[%clk 0:02:09]}  Bc7 {[%clk 0:02:38]} 19. Rad1 {[%clk 0:02:06]}  Qd6 {[%clk 0:02:36]} 20. Qe5 {[%clk 0:01:50]}  Qxe5 {[%clk 0:02:34]} 21. dxe5 {[%clk 0:01:49]}  Rd8 {[%clk 0:02:35]} 22. Ba3 {[%clk 0:01:34]}  Rfe8 {[%clk 0:02:28]} 23. f4 {[%clk 0:01:15]}  Rxd1 {[%clk 0:02:23]} 24. Rxd1 {[%clk 0:01:14]}  Rd8 {[%clk 0:02:24]} 25. Rxd8+ {[%clk 0:01:07]}  Bxd8 {[%clk 0:02:24]} 26. g3 {[%clk 0:01:07]}  Bb6+ {[%clk 0:02:21]} 27. Kg2 {[%clk 0:01:02]}  Bd4 {[%clk 0:02:19]} 28. Kf3 {[%clk 0:01:02]}  g5 {[%clk 0:02:14]} 29. Bd6 {[%clk 0:00:59]}  h6 {[%clk 0:02:11]} 30. h4 {[%clk 0:00:54]}  gxh4 {[%clk 0:02:09]} 31. gxh4 {[%clk 0:00:53]}  h5 {[%clk 0:02:08]} 32. Be7 {[%clk 0:00:39]}  Kf7 {[%clk 0:02:08]} 33. Bf6 {[%clk 0:00:38]}  Ke8 {[%clk 0:02:03]} 34. Ke2 {[%clk 0:00:37]}  Kd7 {[%clk 0:02:02]} 35. Kd3 {[%clk 0:00:36]}  Bf2 {[%clk 0:02:02]} 36. Bg5 {[%clk 0:00:36]}  Kc7 {[%clk 0:02:01]} 37. a3 {[%clk 0:00:23]}  Bc5 {[%clk 0:01:50]} 38. b4 {[%clk 0:00:16]}  Bf2 {[%clk 0:01:50]} 39. Kc3 {[%clk 0:00:11]}  Be1+ {[%clk 0:01:49]} 40. Kb3 {[%clk 0:00:11]}  c5 {[%clk 0:01:41]} 41. bxc5 {[%clk 0:00:10]}  Kc6 {[%clk 0:01:41]} 42. Be7 {[%clk 0:00:09]}  Bd2 {[%clk 0:01:39]} 43. Bg5 {[%clk 0:00:08]}  Kxc5 {[%clk 0:01:38]} 44. Kc2 {[%clk 0:00:07]}  Be3 {[%clk 0:01:36]} 45. Kd3 {[%clk 0:00:06]}  Bc1 {[%clk 0:01:36]} 46. a4 {[%clk 0:00:04]}  Kb4 {[%clk 0:01:33]} 47. Kd4 {[%clk 0:00:02]}  Bb2+ {[%clk 0:01:31]} 48. Kd3 {[%clk 0:00:02]}  Kxa4 {[%clk 0:01:31]} 49. Be7 {[%clk 0:00:01]}  a5 {[%clk 0:01:28]} 50. Bd8 {[%clk 0:00:01]}  Kb4 {[%clk 0:01:24]} 0-1


[Site "https://www.chess.com"]